[Event "6th Uppsala Young Champions 2019"]
[Site "Uppsala"]
[Date "2019.10.30"]
[Round "9.15"]
[White "Dingertz, Erik"]
[Black "Ostlund, Joar"]
[Result "0-1"]
[ECO "A13"]
[WhiteElo "1908"]
[BlackElo "1955"]
[Annotator "NA"]
[PlyCount "58"]
[EventDate "2019.10.25"]
[EventType "swiss"]
[EventCountry "SWE"]
[SourceTitle "playchess.com"]
[Source "ChessBase"]
[SourceQuality "1"]
[TimeControl "5400+30"]

1. Nf3 {[%emt 1:30:30]} d5 {[%emt 1:30:30]} 2. c4 {[%emt 0:00:30]} e6 {[%emt 0:00:30]} 3. g3 {[%emt 0:00:30]} Nf6 {[%emt 0:00:30]} 4. Bg2 {[%emt 0:00:30]} c5 {[%emt 0:00:30]} 5. O-O {[%emt 0:00:30]} Nc6 {[%emt 0:00:30]} 6. b3 {[%emt 0:00:30]} Bd6 {[%emt 0:00:30]} 7. Bb2 {[%emt 0:00:30]} Bd7 {[%emt 0:00:30]} 8. e3 {[%emt 0:00:30]} O-O {[%emt 0:00:30]} 9. Nc3 {[%emt 0:00:30]} Rc8 {[%emt 0:00:30]} 10. Rc1 {[%emt 0:00:30]} Re8 {[%emt 0:00:30]} 11. d4 {[%emt 0:00:30]} cxd4 {[%emt 0:00:30]} 12. exd4 {[%emt 0:00:30]} b6 {[%emt 0:00:30]} 13. Re1 {[%emt 0:00:30]} dxc4 {[%emt 0:00:30]} 14. bxc4 {[%emt 0:00:30]} Na5 {[%emt 0:00:30]} 15. Nb5 {[%emt 0:00:30]} Nxc4 {[%emt 0:00:30]} 16. Rxc4 {[%emt 0:00:30]} Bxb5 {[%emt 0:00:30]} 17. Rxc8 Qxc8 {[%emt 0:00:30]} 18. Qb3 {[%emt 0:01:00]} Bc6 {[%emt 0:00:30]} 19. Rc1 {[%emt 0:00:30]} Qb7 {[%emt 0:00:30]} 20. Qc3 {[%emt 0:00:30]} Bd5 {[%emt 0:00:30]} 21. Ne1 {[%emt 0:00:30]} h6 {[%emt 0:00:30]} 22. a4 {[%emt 0:00:30]} Ne4 {[%emt 0:00:30]} 23. Bxe4 {[%emt 0:00:30]} Bxe4 {[%emt 0:00:30]} 24. f3 {[%emt 0:00:30]} Bd5 {[%emt 0:00:30]} 25. Kf2 {[%emt 0:00:30]} Qa6 {[%emt 0:00:30]} 26. a5 {[%emt 0:00:30]} bxa5 {[%emt 0:00:30]} 27. Ra1 {[%emt 0:00:30]} Rb8 {[%emt 0:00:30]} 28. Nd3 {[%emt 0:00:30]} Rb3 {[%emt 0:00:30]} 29. Rxa5 {[%emt 0:00:30]} Qxd3 {[%emt 0:00:30]} 0-1

[Event "6th Uppsala Young Champions 2019"]
[Site "Uppsala"]
[Date "2019.10.30"]
[Round "9.16"]
[White "Ostensson, Julia"]
[Black "Skahlberg Bjerknes-Lima de Far, Warg"]
[Result "1-0"]
[ECO "B74"]
[WhiteElo "1483"]
[BlackElo "1637"]
[Annotator "NA"]
[PlyCount "59"]
[EventDate "2019.10.25"]
[EventType "swiss"]
[EventCountry "SWE"]
[SourceTitle "playchess.com"]
[Source "ChessBase"]
[SourceQuality "1"]
[TimeControl "5400+30"]

1. e4 {[%emt 1:30:30]} c5 {[%emt 1:30:30]} 2. Nf3 {[%emt 0:00:30]} Nc6 {[%emt 0:00:30]} 3. d4 {[%emt 0:00:30]} cxd4 {[%emt 0:00:30]} 4. Nxd4 {[%emt 0:00:30]} g6 {[%emt 0:00:30]} 5. Nc3 {[%emt 0:00:30]} Bg7 {[%emt 0:00:30]} 6. Be3 {[%emt 0:00:30]} d6 {[%emt 0:00:30]} 7. Be2 {[%emt 0:00:30]} Nf6 {[%emt 0:00:30]} 8. O-O {[%emt 0:00:30]} O-O {[%emt 0:00:30]} 9. Nb3 {[%emt 0:00:30]} Bd7 {[%emt 0:00:30]} 10. f4 {[%emt 0:00:30]} a6 {[%emt 0:00:30]} 11. g4 {[%emt 0:00:30]} Rc8 {[%emt 0:00:30]} 12. g5 {[%emt 0:00:30]} Ne8 {[%emt 0:00:30]} 13. f5 {[%emt 0:00:30]} b5 {[%emt 0:00:30]} 14. Nd5 {[%emt 0:00:30]} Rb8 {[%emt 0:00:30]} 15. f6 {[%emt 0:00:30]} Bh8 {[%emt 0:00:30]} 16. Nd4 {[%emt 0:00:30]} exf6 {[%emt 0:00:30]} 17. gxf6 {[%emt 0:00:30]} Nxf6 {[%emt 0:00:30]} 18. Bg5 {[%emt 0:00:30]} Nxd4 {[%emt 0:00:30]} 19. Bxf6 {[%emt 0:00:30]} Nxe2+ {[%emt 0:00:30]} 20. Qxe2 {[%emt 0:00:30]} Bxf6 {[%emt 0:00:30]} 21. Nxf6+ {[%emt 0:00:30]} Kg7 {[%emt 0:00:30]} 22. Qe3 {[%emt 0:00:30]} Be6 {[%emt 0:00:30]} 23. Qc3 {[%emt 0:00:30]} Qb6+ {[%emt 0:00:30]} 24. Kg2 {[%emt 0:00:30]} Qc5 {[%emt 0:00:30]} 25. Ne8+ {[%emt 0:00:30]} Kh6 {[%emt 0:00:30]} 26. Qg7+ {[%emt 0:00:30]} Kg5 {[%emt 0:00:30]} 27. h4+ {[%emt 0:00:30]} Kxh4 {[%emt 0:00:30]} 28. Qh6+ {[%emt 0:00:30]} Qh5 {[%emt 0:00:30]} 29. Rf4+ {[%emt 0:00:30]} Bg4 {[%emt 0:00:30]} 30. Rh1# {[%emt 0:00:30]} 1-0